[Event "Titled Tuesday Blitz May 10 Late 2022"]
[White "Jacobson, Aaron"]
[Black "Estrada Nieto, Julian"]
[WhiteFideId "2089912"]
[BlackFideId "5101018"]
[WhiteElo "2265"]
[BlackElo "2252"]
[Result "1-0"]
[Round "07"]
[TimeControl "180+1"]
[Date "2022.05.11"]
[WhiteClock "0:01:14"]
[BlackClock "0:00:24"]

1. e4 {[%clk 0:02:53]}  e5 {[%clk 0:02:59]} 2. Nc3 {[%clk 0:02:50]}  Nf6 {[%clk 0:02:56]} 3. d4 {[%clk 0:02:50]}  exd4 {[%clk 0:02:56]} 4. Qxd4 {[%clk 0:02:51]}  Nc6 {[%clk 0:02:56]} 5. Qd3 {[%clk 0:02:52]}  Bb4 {[%clk 0:02:52]} 6. Bd2 {[%clk 0:02:52]}  O-O {[%clk 0:02:50]} 7. O-O-O {[%clk 0:02:52]}  Re8 {[%clk 0:02:48]} 8. Nge2 {[%clk 0:02:53]}  d5 {[%clk 0:02:37]} 9. exd5 {[%clk 0:02:45]}  Ne5 {[%clk 0:02:35]} 10. Qd4 {[%clk 0:02:42]}  Qe7 {[%clk 0:02:26]} 11. Bg5 {[%clk 0:02:35]}  Bc5 {[%clk 0:02:10]} 12. Qh4 {[%clk 0:02:31]}  Ng6 {[%clk 0:02:02]} 13. Qg3 {[%clk 0:02:28]}  Bf5 {[%clk 0:01:49]} 14. h4 {[%clk 0:02:22]}  h6 {[%clk 0:01:45]} 15. Bxf6 {[%clk 0:01:56]}  Qxf6 {[%clk 0:01:45]} 16. h5 {[%clk 0:01:57]}  Ne5 {[%clk 0:01:42]} 17. Qf4 {[%clk 0:01:50]}  Ng4 {[%clk 0:01:29]} 18. Nd4 {[%clk 0:01:39]}  Bd7 {[%clk 0:01:24]} 19. Qxf6 {[%clk 0:01:38]}  gxf6 {[%clk 0:01:24]} 20. Nb3 {[%clk 0:01:27]}  Bb6 {[%clk 0:01:17]} 21. f3 {[%clk 0:01:25]}  Nf2 {[%clk 0:01:16]} 22. Bd3 {[%clk 0:01:24]}  Nxh1 {[%clk 0:01:13]} 23. Rxh1 {[%clk 0:01:24]}  Rad8 {[%clk 0:01:08]} 24. Ne4 {[%clk 0:01:21]}  Kg7 {[%clk 0:01:05]} 25. c4 {[%clk 0:01:18]}  Be3+ {[%clk 0:01:04]} 26. Kc2 {[%clk 0:01:17]}  f5 {[%clk 0:01:04]} 27. Ng3 {[%clk 0:01:15]}  Kf6 {[%clk 0:00:57]} 28. Ne2 {[%clk 0:01:14]}  f4 {[%clk 0:00:54]} 29. Nd2 {[%clk 0:01:08]}  Bxd2 {[%clk 0:00:49]} 30. Kxd2 {[%clk 0:01:08]}  Kg5 {[%clk 0:00:45]} 31. Rg1 {[%clk 0:01:03]}  Bf5 {[%clk 0:00:44]} 32. g3 {[%clk 0:01:00]}  fxg3 {[%clk 0:00:41]} 33. Rxg3+ {[%clk 0:00:55]}  Kf6 {[%clk 0:00:41]} 34. Bxf5 {[%clk 0:00:51]}  Kxf5 {[%clk 0:00:41]} 35. Nd4+ {[%clk 0:00:52]}  Kf6 {[%clk 0:00:39]} 36. Rg4 {[%clk 0:00:51]}  Re5 {[%clk 0:00:37]} 37. Rf4+ {[%clk 0:00:49]}  Kg7 {[%clk 0:00:34]} 38. Nf5+ {[%clk 0:00:49]}  Kh7 {[%clk 0:00:34]} 39. Kd3 {[%clk 0:00:47]}  Rde8 {[%clk 0:00:32]} 40. Ng3 {[%clk 0:00:44]}  Kg8 {[%clk 0:00:26]} 41. Ne4 {[%clk 0:00:43]}  Kg7 {[%clk 0:00:23]} 42. Kd4 {[%clk 0:00:42]}  Rxh5 {[%clk 0:00:20]} 43. Nf6 {[%clk 0:00:42]}  Rhe5 {[%clk 0:00:18]} 44. Nxe8+ {[%clk 0:00:42]}  Rxe8 {[%clk 0:00:18]} 45. c5 {[%clk 0:00:42]}  h5 {[%clk 0:00:16]} 46. d6 {[%clk 0:00:42]}  cxd6 {[%clk 0:00:15]} 47. cxd6 {[%clk 0:00:43]}  Re1 {[%clk 0:00:11]} 48. Kd5 {[%clk 0:00:27]}  Rd1+ {[%clk 0:00:11]} 49. Ke5 {[%clk 0:00:28]}  Re1+ {[%clk 0:00:09]} 50. Re4 {[%clk 0:00:15]}  Rd1 {[%clk 0:00:09]} 51. Rb4 {[%clk 0:00:12]}  b6 {[%clk 0:00:08]} 52. Rh4 {[%clk 0:00:06]}  Kg6 {[%clk 0:00:06]} 53. Rh2 {[%clk 0:00:06]}  Re1+ {[%clk 0:00:06]} 54. Kd5 {[%clk 0:00:06]}  Rd1+ {[%clk 0:00:06]} 55. Kc6 {[%clk 0:00:06]}  Kg5 {[%clk 0:00:06]} 56. d7 {[%clk 0:00:06]}  h4 {[%clk 0:00:06]} 57. Rg2+ {[%clk 0:00:05]}  Kf4 {[%clk 0:00:05]} 58. Rg4+ {[%clk 0:00:05]}  Kxf3 {[%clk 0:00:06]} 59. Rxh4 {[%clk 0:00:05]}  f5 {[%clk 0:00:06]} 60. Rh5 {[%clk 0:00:06]}  f4 {[%clk 0:00:06]} 61. Rd5 {[%clk 0:00:07]}  Rc1+ {[%clk 0:00:06]} 62. Kb7 {[%clk 0:00:07]}  Ke4 {[%clk 0:00:05]} 63. d8=Q {[%clk 0:00:07]}  f3 {[%clk 0:00:05]} 64. Qd6 {[%clk 0:00:07]}  f2 {[%clk 0:00:05]} 65. Qe6+ {[%clk 0:00:07]}  Kf3 {[%clk 0:00:05]} 66. Rf5+ {[%clk 0:00:08]}  Kg2 {[%clk 0:00:05]} 67. Qe4+ {[%clk 0:00:09]}  Kf1 {[%clk 0:00:05]} 68. Qh1+ {[%clk 0:00:09]}  Ke2 {[%clk 0:00:04]} 69. Qxc1 {[%clk 0:00:10]}  f1=Q {[%clk 0:00:05]} 70. Qxf1+ {[%clk 0:00:10]}  Ke3 {[%clk 0:00:05]} 71. Rf2 {[%clk 0:00:10]}  Ke4 {[%clk 0:00:06]} 72. Kxa7 {[%clk 0:00:10]}  Ke5 {[%clk 0:00:07]} 73. Kxb6 {[%clk 0:00:10]}  Kd6 {[%clk 0:00:08]} 74. Kb5 {[%clk 0:00:11]}  Ke5 {[%clk 0:00:07]} 75. Qd3 {[%clk 0:00:11]}  Ke6 {[%clk 0:00:07]} 76. Re2+ {[%clk 0:00:12]}  Kf6 {[%clk 0:00:06]} 77. Qf3+ {[%clk 0:00:12]}  Kg5 {[%clk 0:00:07]} 78. Rg2+ {[%clk 0:00:11]}  Kh4 {[%clk 0:00:08]} 79. Qf1 {[%clk 0:00:10]}  Kh3 {[%clk 0:00:09]} 80. Qg1 {[%clk 0:00:10]}  Kh4 {[%clk 0:00:08]} 81. Kc4 {[%clk 0:00:10]}  Kh5 {[%clk 0:00:08]} 82. Kc3 {[%clk 0:00:11]}  Kh6 {[%clk 0:00:08]} 83. Kc2 {[%clk 0:00:12]}  Kh5 {[%clk 0:00:09]} 84. Kc1 {[%clk 0:00:13]}  Kh4 {[%clk 0:00:10]} 85. Kb1 {[%clk 0:00:14]}  Kh3 {[%clk 0:00:10]} 86. Ka1 {[%clk 0:00:15]}  Kh4 {[%clk 0:00:11]} 87. a3 {[%clk 0:00:16]}  Kh5 {[%clk 0:00:12]} 88. Ka2 {[%clk 0:00:17]}  Kh4 {[%clk 0:00:13]} 89. Kb3 {[%clk 0:00:16]}  Kh5 {[%clk 0:00:14]} 90. Ka4 {[%clk 0:00:17]}  Kh4 {[%clk 0:00:14]} 91. Ka5 {[%clk 0:00:18]}  Kh5 {[%clk 0:00:15]} 92. Ka6 {[%clk 0:00:19]}  Kh4 {[%clk 0:00:16]} 93. Ka7 {[%clk 0:00:20]}  Kh5 {[%clk 0:00:17]} 94. Ka8 {[%clk 0:00:21]}  Kh4 {[%clk 0:00:18]} 95. Kb8 {[%clk 0:00:22]}  Kh5 {[%clk 0:00:19]} 96. Kb7 {[%clk 0:00:22]}  Kh4 {[%clk 0:00:20]} 97. Kb6 {[%clk 0:00:23]}  Kh5 {[%clk 0:00:20]} 98. Kb5 {[%clk 0:00:24]}  Kh4 {[%clk 0:00:21]} 99. Kb4 {[%clk 0:00:25]}  Kh5 {[%clk 0:00:22]} 100. Kb3 {[%clk 0:00:26]}  Kh4 {[%clk 0:00:22]} 101. Kc3 {[%clk 0:00:27]}  Kh5 {[%clk 0:00:23]} 102. Kc4 {[%clk 0:00:28]}  Kh4 {[%clk 0:00:24]} 103. Kc5 {[%clk 0:00:29]}  Kh5 {[%clk 0:00:24]} 104. Kc6 {[%clk 0:00:30]}  Kh4 {[%clk 0:00:24]} 105. Kc7 {[%clk 0:00:31]}  Kh5 {[%clk 0:00:25]} 106. Kd7 {[%clk 0:00:22]}  Kh4 {[%clk 0:00:26]} 107. Kd6 {[%clk 0:00:22]}  Kh5 {[%clk 0:00:27]} 108. Kd5 {[%clk 0:00:23]}  Kh4 {[%clk 0:00:28]} 109. Rg3 {[%clk 0:00:24]}  Kh5 {[%clk 0:00:28]} 110. Kd4 {[%clk 0:00:24]}  Kh4 {[%clk 0:00:29]} 111. Kd3 {[%clk 0:00:25]}  Kh5 {[%clk 0:00:30]} 112. Kd2 {[%clk 0:00:26]}  Kh4 {[%clk 0:00:31]} 113. Kd1 {[%clk 0:00:25]}  Kh5 {[%clk 0:00:32]} 114. Ke1 {[%clk 0:00:26]}  Kh6 {[%clk 0:00:33]} 115. Ke2 {[%clk 0:00:27]}  Kh5 {[%clk 0:00:34]} 116. Ke3 {[%clk 0:00:28]}  Kh4 {[%clk 0:00:35]} 117. Ke4 {[%clk 0:00:29]}  Kh5 {[%clk 0:00:35]} 118. Ke5 {[%clk 0:00:30]}  Kh6 {[%clk 0:00:36]} 119. Ke6 {[%clk 0:00:30]}  Kh5 {[%clk 0:00:37]} 120. Ke7 {[%clk 0:00:31]}  Kh4 {[%clk 0:00:38]} 121. Ke8 {[%clk 0:00:32]}  Kh5 {[%clk 0:00:39]} 122. Kf8 {[%clk 0:00:33]}  Kh4 {[%clk 0:00:40]} 123. Kf7 {[%clk 0:00:34]}  Kh5 {[%clk 0:00:40]} 124. Kf6 {[%clk 0:00:35]}  Kh4 {[%clk 0:00:41]} 125. Kf5 {[%clk 0:00:34]}  Kh5 {[%clk 0:00:42]} 126. Kf4 {[%clk 0:00:35]}  Kh4 {[%clk 0:00:43]} 127. Kf3 {[%clk 0:00:36]}  Kh5 {[%clk 0:00:43]} 128. Kf2 {[%clk 0:00:37]}  Kh6 {[%clk 0:00:44]} 129. Kf1 {[%clk 0:00:38]}  Kh5 {[%clk 0:00:44]} 130. Qg2 {[%clk 0:00:39]}  Kh4 {[%clk 0:00:44]} 131. Ke1 {[%clk 0:00:39]}  Kh5 {[%clk 0:00:43]} 132. Kd1 {[%clk 0:00:40]}  Kh4 {[%clk 0:00:41]} 133. Kc1 {[%clk 0:00:41]}  Kh5 {[%clk 0:00:41]} 134. Kb1 {[%clk 0:00:42]}  Kh4 {[%clk 0:00:41]} 135. Ka1 {[%clk 0:00:43]}  Kh5 {[%clk 0:00:42]} 136. a4 {[%clk 0:00:44]}  Kh6 {[%clk 0:00:43]} 137. Ka2 {[%clk 0:00:42]}  Kh5 {[%clk 0:00:44]} 138. Ka3 {[%clk 0:00:42]}  Kh4 {[%clk 0:00:45]} 139. Kb4 {[%clk 0:00:43]}  Kh5 {[%clk 0:00:46]} 140. Ka5 {[%clk 0:00:44]}  Kh4 {[%clk 0:00:46]} 141. Ka6 {[%clk 0:00:45]}  Kh5 {[%clk 0:00:47]} 142. Ka7 {[%clk 0:00:46]}  Kh4 {[%clk 0:00:48]} 143. Ka8 {[%clk 0:00:47]}  Kh5 {[%clk 0:00:48]} 144. Kb8 {[%clk 0:00:48]}  Kh6 {[%clk 0:00:49]} 145. Kb7 {[%clk 0:00:49]}  Kh5 {[%clk 0:00:50]} 146. Kb6 {[%clk 0:00:49]}  Kh4 {[%clk 0:00:50]} 147. Kb5 {[%clk 0:00:50]}  Kh5 {[%clk 0:00:49]} 148. Kc4 {[%clk 0:00:51]}  Kh4 {[%clk 0:00:36]} 149. Kc3 {[%clk 0:00:52]}  Kh5 {[%clk 0:00:36]} 150. Kc2 {[%clk 0:00:51]}  Kh4 {[%clk 0:00:36]} 151. Kc1 {[%clk 0:00:52]}  Kh5 {[%clk 0:00:36]} 152. Kd1 {[%clk 0:00:53]}  Kh4 {[%clk 0:00:36]} 153. Kd2 {[%clk 0:00:54]}  Kh5 {[%clk 0:00:37]} 154. Kd3 {[%clk 0:00:55]}  Kh4 {[%clk 0:00:37]} 155. Qg1 {[%clk 0:00:56]}  Kh5 {[%clk 0:00:38]} 156. Kd4 {[%clk 0:00:56]}  Kh4 {[%clk 0:00:38]} 157. Kd5 {[%clk 0:00:57]}  Kh5 {[%clk 0:00:39]} 158. Kd6 {[%clk 0:00:58]}  Kh4 {[%clk 0:00:40]} 159. Kd7 {[%clk 0:00:59]}  Kh5 {[%clk 0:00:40]} 160. Kd8 {[%clk 0:01:00]}  Kh4 {[%clk 0:00:41]} 161. Ke8 {[%clk 0:01:01]}  Kh5 {[%clk 0:00:27]} 162. Ke7 {[%clk 0:01:02]}  Kh4 {[%clk 0:00:27]} 163. Ke6 {[%clk 0:01:03]}  Kh5 {[%clk 0:00:25]} 164. Ke5 {[%clk 0:01:04]}  Kh4 {[%clk 0:00:25]} 165. Ke4 {[%clk 0:01:05]}  Kh5 {[%clk 0:00:25]} 166. Ke3 {[%clk 0:01:05]}  Kh4 {[%clk 0:00:25]} 167. Ke2 {[%clk 0:01:06]}  Kh5 {[%clk 0:00:25]} 168. Ke1 {[%clk 0:01:07]}  Kh4 {[%clk 0:00:25]} 169. Kf1 {[%clk 0:01:08]}  Kh5 {[%clk 0:00:25]} 170. Kf2 {[%clk 0:01:09]}  Kh4 {[%clk 0:00:25]} 171. Kf3 {[%clk 0:01:10]}  Kh5 {[%clk 0:00:25]} 172. Kf4 {[%clk 0:01:11]}  Kh4 {[%clk 0:00:25]} 173. Kf5 {[%clk 0:01:12]}  Kh5 {[%clk 0:00:24]} 174. Kf6 {[%clk 0:01:13]}  Kh4 {[%clk 0:00:24]} 175. Kf7 {[%clk 0:01:14]}  Kh5 {[%clk 0:00:24]} 176. Rg4 {[%clk 0:01:14]} 1-0


[Site "https://www.chess.com"]

[Event "Titled Tuesday Blitz May 10 Late 2022"]
[White "Jakubowski, Krzysztof"]
[Black "Pap, Gyula"]
[WhiteFideId "1112848"]
[BlackFideId "725323"]
[WhiteElo "2365"]
[BlackElo "2553"]
[Result "0-1"]
[Round "07"]
[TimeControl "180+1"]
[Date "2022.05.10"]
[WhiteClock "0:00:01"]
[BlackClock "0:01:18"]

1. e4 {[%clk 0:03:00]}  e6 {[%clk 0:03:00]} 2. d4 {[%clk 0:02:58]}  d5 {[%clk 0:03:00]} 3. Nc3 {[%clk 0:02:58]}  Nf6 {[%clk 0:02:56]} 4. Bg5 {[%clk 0:02:56]}  Bb4 {[%clk 0:02:57]} 5. e5 {[%clk 0:02:55]}  h6 {[%clk 0:02:58]} 6. Be3 {[%clk 0:02:54]}  Ne4 {[%clk 0:02:57]} 7. Qg4 {[%clk 0:02:52]}  Kf8 {[%clk 0:02:51]} 8. a3 {[%clk 0:02:48]}  Bxc3+ {[%clk 0:02:47]} 9. bxc3 {[%clk 0:02:47]}  c5 {[%clk 0:02:48]} 10. Bd3 {[%clk 0:02:37]}  Nxc3 {[%clk 0:02:49]} 11. dxc5 {[%clk 0:02:35]}  Nc6 {[%clk 0:02:49]} 12. Nf3 {[%clk 0:02:34]}  f5 {[%clk 0:02:50]} 13. exf6 {[%clk 0:02:34]}  Qxf6 {[%clk 0:02:50]} 14. Qh5 {[%clk 0:02:12]}  Bd7 {[%clk 0:02:44]} 15. Nh4 {[%clk 0:02:04]}  Ne7 {[%clk 0:02:39]} 16. Ng6+ {[%clk 0:01:51]}  Nxg6 {[%clk 0:02:38]} 17. Bxg6 {[%clk 0:01:52]}  Be8 {[%clk 0:02:34]} 18. Bxe8 {[%clk 0:01:50]}  Rxe8 {[%clk 0:02:35]} 19. O-O {[%clk 0:01:48]}  Qf7 {[%clk 0:02:10]} 20. Qg4 {[%clk 0:01:42]}  e5 {[%clk 0:02:07]} 21. Qb4 {[%clk 0:01:35]}  d4 {[%clk 0:02:06]} 22. c6+ {[%clk 0:01:18]}  Kg8 {[%clk 0:02:05]} 23. cxb7 {[%clk 0:01:15]}  Kh7 {[%clk 0:02:05]} 24. Bd2 {[%clk 0:01:02]}  Ne4 {[%clk 0:02:03]} 25. Rab1 {[%clk 0:00:55]}  Rb8 {[%clk 0:02:03]} 26. Be1 {[%clk 0:00:52]}  Qd5 {[%clk 0:02:00]} 27. Rb3 {[%clk 0:00:44]}  Nc5 {[%clk 0:01:56]} 28. Rg3 {[%clk 0:00:42]}  Rxb7 {[%clk 0:01:57]} 29. Qa5 {[%clk 0:00:41]}  Rd8 {[%clk 0:01:53]} 30. f4 {[%clk 0:00:33]}  Ne4 {[%clk 0:01:37]} 31. Qxd5 {[%clk 0:00:30]}  Rxd5 {[%clk 0:01:38]} 32. Rh3 {[%clk 0:00:19]}  Rc7 {[%clk 0:01:36]} 33. fxe5 {[%clk 0:00:18]}  Rxe5 {[%clk 0:01:37]} 34. Rd3 {[%clk 0:00:15]}  Rxc2 {[%clk 0:01:32]} 35. Rxd4 {[%clk 0:00:15]}  Rg5 {[%clk 0:01:33]} 36. g3 {[%clk 0:00:14]}  Re5 {[%clk 0:01:27]} 37. Ra4 {[%clk 0:00:13]}  Ng5 {[%clk 0:01:24]} 38. Bf2 {[%clk 0:00:08]}  Ree2 {[%clk 0:01:20]} 39. Kg2 {[%clk 0:00:04]}  Ne4 {[%clk 0:01:21]} 40. Kf3 {[%clk 0:00:04]}  Nxf2 {[%clk 0:01:19]} 41. Rxa7 {[%clk 0:00:02]}  Nd3 {[%clk 0:01:19]} 42. Rd1 {[%clk 0:00:01]}  Ne5+ {[%clk 0:01:18]} 0-1


[Site "https://www.chess.com"]

[Event "Titled Tuesday Blitz May 10 Late 2022"]
[White "Jobava, Baadur"]
[Black "Alekseenko, Kirill"]
[WhiteFideId "13601520"]
[BlackFideId "4135539"]
[WhiteElo "2617"]
[BlackElo "2682"]
[Result "1-0"]
[Round "07"]
[TimeControl "180+1"]
[Date "2022.05.10"]
[WhiteClock "0:00:09"]
[BlackClock "0:00:06"]

1. b3 {[%clk 0:03:00]}  e5 {[%clk 0:02:53]} 2. Bb2 {[%clk 0:03:01]}  Nc6 {[%clk 0:02:52]} 3. Nf3 {[%clk 0:03:02]}  f6 {[%clk 0:02:52]} 4. d4 {[%clk 0:03:01]}  e4 {[%clk 0:02:52]} 5. d5 {[%clk 0:03:01]}  exf3 {[%clk 0:02:50]} 6. dxc6 {[%clk 0:03:01]}  fxg2 {[%clk 0:02:48]} 7. cxd7+ {[%clk 0:03:00]}  Qxd7 {[%clk 0:02:48]} 8. Qxd7+ {[%clk 0:02:59]}  Bxd7 {[%clk 0:02:49]} 9. Bxg2 {[%clk 0:02:59]}  O-O-O {[%clk 0:02:50]} 10. Nc3 {[%clk 0:02:56]}  Bf5 {[%clk 0:02:48]} 11. e4 {[%clk 0:02:55]}  Be6 {[%clk 0:02:46]} 12. Nd5 {[%clk 0:02:48]}  Bd6 {[%clk 0:02:40]} 13. O-O-O {[%clk 0:02:47]}  c6 {[%clk 0:02:40]} 14. Ne3 {[%clk 0:02:45]}  Nh6 {[%clk 0:02:37]} 15. Bf3 {[%clk 0:02:33]}  Bf4 {[%clk 0:02:34]} 16. Rhg1 {[%clk 0:02:30]}  Rxd1+ {[%clk 0:02:32]} 17. Kxd1 {[%clk 0:02:30]}  Rd8+ {[%clk 0:02:31]} 18. Ke2 {[%clk 0:02:30]}  Rd7 {[%clk 0:02:27]} 19. h4 {[%clk 0:02:30]}  Kd8 {[%clk 0:02:22]} 20. a4 {[%clk 0:02:27]}  Ke8 {[%clk 0:02:16]} 21. a5 {[%clk 0:02:27]}  Kf8 {[%clk 0:02:10]} 22. Bc3 {[%clk 0:02:24]}  Nf7 {[%clk 0:02:05]} 23. Bg4 {[%clk 0:02:19]}  Bxg4+ {[%clk 0:02:02]} 24. Nxg4 {[%clk 0:02:15]}  h5 {[%clk 0:01:54]} 25. Ne3 {[%clk 0:02:14]}  Ne5 {[%clk 0:01:43]} 26. Nf5 {[%clk 0:02:11]}  a6 {[%clk 0:01:27]} 27. Bb4+ {[%clk 0:02:09]}  Kg8 {[%clk 0:01:27]} 28. Be7 {[%clk 0:02:07]}  Rd2+ {[%clk 0:01:19]} 29. Kf1 {[%clk 0:02:04]}  Ng4 {[%clk 0:01:09]} 30. Bc5 {[%clk 0:01:21]}  g6 {[%clk 0:01:09]} 31. Ne7+ {[%clk 0:01:05]}  Kf7 {[%clk 0:01:08]} 32. c4 {[%clk 0:01:05]}  Rb2 {[%clk 0:00:40]} 33. b4 {[%clk 0:01:00]}  Rc2 {[%clk 0:00:40]} 34. Nc8 {[%clk 0:00:57]}  Rxc4 {[%clk 0:00:37]} 35. f3 {[%clk 0:00:54]}  Rc1+ {[%clk 0:00:36]} 36. Ke2 {[%clk 0:00:54]}  Rxg1 {[%clk 0:00:28]} 37. Bxg1 {[%clk 0:00:55]}  Nh6 {[%clk 0:00:26]} 38. Be3 {[%clk 0:00:43]}  Bxe3 {[%clk 0:00:27]} 39. Kxe3 {[%clk 0:00:44]}  Ke6 {[%clk 0:00:27]} 40. f4 {[%clk 0:00:42]}  Nf7 {[%clk 0:00:25]} 41. Nb6 {[%clk 0:00:41]}  Nd6 {[%clk 0:00:23]} 42. Na4 {[%clk 0:00:40]}  g5 {[%clk 0:00:17]} 43. Nc5+ {[%clk 0:00:40]}  Kf7 {[%clk 0:00:17]} 44. fxg5 {[%clk 0:00:32]}  fxg5 {[%clk 0:00:17]} 45. hxg5 {[%clk 0:00:33]}  Kg6 {[%clk 0:00:18]} 46. Kf4 {[%clk 0:00:34]}  Nf7 {[%clk 0:00:15]} 47. Ne6 {[%clk 0:00:29]}  Nd6 {[%clk 0:00:10]} 48. e5 {[%clk 0:00:30]}  Nf7 {[%clk 0:00:09]} 49. Nf8+ {[%clk 0:00:30]}  Kg7 {[%clk 0:00:09]} 50. Nd7 {[%clk 0:00:30]}  Kg6 {[%clk 0:00:09]} 51. Nf8+ {[%clk 0:00:12]}  Kg7 {[%clk 0:00:09]} 52. Ne6+ {[%clk 0:00:12]}  Kg6 {[%clk 0:00:10]} 53. Nc5 {[%clk 0:00:09]}  Nxg5 {[%clk 0:00:10]} 54. Nxb7 {[%clk 0:00:10]}  Ne6+ {[%clk 0:00:11]} 55. Ke4 {[%clk 0:00:10]}  h4 {[%clk 0:00:11]} 56. Nd6 {[%clk 0:00:10]}  Kg5 {[%clk 0:00:08]} 57. Kf3 {[%clk 0:00:09]}  Nd4+ {[%clk 0:00:08]} 58. Kg2 {[%clk 0:00:10]}  Kf4 {[%clk 0:00:09]} 59. Nc4 {[%clk 0:00:10]}  Kg4 {[%clk 0:00:08]} 60. Ne3+ {[%clk 0:00:10]}  Kf4 {[%clk 0:00:08]} 61. Nc4 {[%clk 0:00:11]}  Kg5 {[%clk 0:00:07]} 62. Kh3 {[%clk 0:00:10]}  Nc2 {[%clk 0:00:06]} 63. e6 {[%clk 0:00:09]}  Nxb4 {[%clk 0:00:06]} 64. e7 {[%clk 0:00:09]} 1-0


[Site "https://www.chess.com"]

[Event "Titled Tuesday Blitz May 10 Late 2022"]
[White "Kamsky, Gata"]
[Black "Della Morte, German"]
[WhiteFideId "2000024"]
[BlackFideId "113522"]
[WhiteElo "2645"]
[BlackElo "2363"]
[Result "1-0"]
[Round "07"]
[TimeControl "180+1"]
[Date "2022.05.10"]
[WhiteClock "0:00:28"]
[BlackClock "0:00:02"]

1. e4 {[%clk 0:03:00]}  e5 {[%clk 0:03:00]} 2. Nf3 {[%clk 0:03:00]}  Nc6 {[%clk 0:03:00]} 3. Bb5 {[%clk 0:02:59]}  a6 {[%clk 0:03:01]} 4. Ba4 {[%clk 0:02:59]}  Nf6 {[%clk 0:03:01]} 5. O-O {[%clk 0:02:58]}  Be7 {[%clk 0:03:02]} 6. Re1 {[%clk 0:02:58]}  b5 {[%clk 0:03:01]} 7. Bb3 {[%clk 0:02:58]}  d6 {[%clk 0:03:02]} 8. c3 {[%clk 0:02:59]}  O-O {[%clk 0:03:02]} 9. d4 {[%clk 0:02:59]}  Bg4 {[%clk 0:02:58]} 10. d5 {[%clk 0:02:59]}  Na5 {[%clk 0:02:58]} 11. Bc2 {[%clk 0:02:59]}  c6 {[%clk 0:02:59]} 12. h3 {[%clk 0:02:59]}  Bc8 {[%clk 0:02:59]} 13. dxc6 {[%clk 0:02:59]}  Qc7 {[%clk 0:03:00]} 14. Nbd2 {[%clk 0:03:00]}  Qxc6 {[%clk 0:03:00]} 15. Nf1 {[%clk 0:03:00]}  Be6 {[%clk 0:02:41]} 16. Ng5 {[%clk 0:02:58]}  Bd7 {[%clk 0:02:41]} 17. Ne3 {[%clk 0:02:58]}  h6 {[%clk 0:02:40]} 18. Nf3 {[%clk 0:02:55]}  Be6 {[%clk 0:02:40]} 19. Nh4 {[%clk 0:02:53]}  Rfd8 {[%clk 0:02:28]} 20. Nhf5 {[%clk 0:02:52]}  Bf8 {[%clk 0:02:29]} 21. Qf3 {[%clk 0:02:49]}  Nh7 {[%clk 0:02:28]} 22. Nd5 {[%clk 0:02:43]}  Re8 {[%clk 0:02:08]} 23. Rd1 {[%clk 0:02:38]}  Nc4 {[%clk 0:02:02]} 24. a4 {[%clk 0:02:26]}  Rab8 {[%clk 0:01:42]} 25. Qg3 {[%clk 0:02:20]}  Kh8 {[%clk 0:01:42]} 26. Nb4 {[%clk 0:02:13]}  Qb7 {[%clk 0:00:59]} 27. b3 {[%clk 0:02:07]}  Na5 {[%clk 0:00:52]} 28. axb5 {[%clk 0:02:00]}  Qxb5 {[%clk 0:00:47]} 29. Nxd6 {[%clk 0:01:29]}  Bxd6 {[%clk 0:00:47]} 30. Rxd6 {[%clk 0:01:28]}  Nxb3 {[%clk 0:00:43]} 31. Bxb3 {[%clk 0:01:18]}  Bxb3 {[%clk 0:00:44]} 32. Raxa6 {[%clk 0:01:14]}  Qe2 {[%clk 0:00:35]} 33. Qe3 {[%clk 0:01:01]}  Qc4 {[%clk 0:00:16]} 34. Rac6 {[%clk 0:00:57]}  Qb5 {[%clk 0:00:15]} 35. Kh2 {[%clk 0:00:51]}  Qb7 {[%clk 0:00:14]} 36. Qg3 {[%clk 0:00:49]}  Be6 {[%clk 0:00:12]} 37. Bxh6 {[%clk 0:00:45]}  gxh6 {[%clk 0:00:12]} 38. Qxe5+ {[%clk 0:00:45]}  Kg8 {[%clk 0:00:12]} 39. Qg3+ {[%clk 0:00:45]}  Kh8 {[%clk 0:00:13]} 40. f4 {[%clk 0:00:42]}  Rg8 {[%clk 0:00:09]} 41. Qh4 {[%clk 0:00:41]}  Qb5 {[%clk 0:00:08]} 42. Rd2 {[%clk 0:00:36]}  Rbe8 {[%clk 0:00:07]} 43. Qf2 {[%clk 0:00:34]}  Qb7 {[%clk 0:00:05]} 44. Qd4+ {[%clk 0:00:34]}  Rg7 {[%clk 0:00:04]} 45. f5 {[%clk 0:00:34]}  Bc8 {[%clk 0:00:05]} 46. Rxh6 {[%clk 0:00:33]}  Qb8+ {[%clk 0:00:04]} 47. Qd6 {[%clk 0:00:30]}  Qxd6+ {[%clk 0:00:04]} 48. Rdxd6 {[%clk 0:00:29]}  f6 {[%clk 0:00:05]} 49. Nd5 {[%clk 0:00:28]}  Kg8 {[%clk 0:00:04]} 50. Rxh7 {[%clk 0:00:28]}  Kxh7 {[%clk 0:00:04]} 51. Nxf6+ {[%clk 0:00:28]}  Kh8 {[%clk 0:00:04]} 52. Nxe8 {[%clk 0:00:29]}  Re7 {[%clk 0:00:04]} 53. Rd8 {[%clk 0:00:29]}  Bb7 {[%clk 0:00:03]} 54. Nd6+ {[%clk 0:00:29]}  Kg7 {[%clk 0:00:03]} 55. e5 {[%clk 0:00:28]}  Bd5 {[%clk 0:00:02]} 56. f6+ {[%clk 0:00:28]} 1-0


[Site "https://www.chess.com"]